Cogmind - Beta 9.1 @@@ ROGUE MODE // 2019.10.31 @ 16:17:21 // Halloween2019/Abominations Player: Musaab Result: Destroyed by Lesser Abomination with Small Laser Performance ------------- Evolutions (1) 500 Regions Visited (2) 400 Robots Destroyed (6) 30 Value Destroyed (307) 307 Prototype IDs (0) 0 Alien Tech Used (0) 0 Bonus (0) 0 TOTAL SCORE: 1237 Bonus ------- None Cogmind --------- Core Integrity 0/400 Matter 270/300 Energy 97/100 System Corruption 7% Temperature Cool (6) Location -9/Materials Parts ------- Power (2) Propulsion (2) Utility (2) Visual Processing Unit Reclamation Unit Weapon (3) Small Laser Inventory (4) Peak State ------------ Power Light Ion Engine Light Ion Engine Propulsion Aluminum Leg Aluminum Leg Utility Small Storage Unit Propulsion Shielding Weapon Medium Laser Assault Rifle Light Assault Rifle Inventory Visual Processing Unit Grenade Launcher [Rating: 9] Favorites ----------- Power Light Ion Engine Engine Light Ion Engine Propulsion Aluminum Leg Leg Aluminum Leg Wheel Compact Wheel Utility Small Storage Unit Device Reclamation Unit Storage Small Storage Unit Processor Visual Processing Unit Protection Propulsion Shielding Weapon Light Assault Rifle Energy Gun Medium Laser Ballistic Gun Light Assault Rifle Launcher Grenade Launcher Build | -11 -10 -9 ------- Run | Scr Mat Mat Slots Evolved 2 | . . 2 Power 1 | . . 1 Propulsion . | . . . Utility . | . . . Weapon 1 | . . 1 Parts Attached 17 | 7 4 6 Power 3 | 1 1 1 Engine 3 | 1 1 1 Core . | . . . Reactor . | . . . Propulsion 3 | 3 . . Treads . | . . . Leg 2 | 2 . . Wheel 1 | 1 . . Hover . | . . . Flight . | . . . Utility 4 | 1 1 2 Device 1 | . . 1 Storage 1 | 1 . . Processor 1 | . . 1 Hackware . | . . . Protection 1 | . 1 . Artifact . | . . . Weapon 7 | 2 2 3 Energy Gun 3 | 1 . 2 Energy Cannon . | . . . Ballistic Gun 2 | 1 1 . Ballistic Cannon . | . . . Launcher 2 | . 1 1 Special Weapon . | . . . Impact Weapon . | . . . Slashing Weapon . | . . . Piercing Weapon . | . . . Special Melee Weapon . | . . . Unidentified Prototypes . | . . . Parts Lost 11 | . 1 10 Power 3 | . 1 2 Propulsion 2 | . . 2 Utility 2 | . . 2 Weapon 4 | . . 4 Highest Loss Streak 10 | . 1 10 Average Slot Usage (%) 79 | . 92 65 Engine 12 | . 13 10 Leg 21 | . 28 14 Storage 11 | . 14 8 Protection 7 | . 7 7 Energy Gun 5 | . 3 7 Ballistic Gun 19 | . 23 14 Naked Turns 29 | . . 29 Heaviest Build 16 | 12 13 16 Greatest Support 20 | 20 20 20 Greatest Overweight (x) 1 | . . 1 Average Overweight (x) . | . . . Largest Inventory Capacity 6 | 6 6 6 Average Capacity 5 | 5 6 5 Most Carried 4 | 4 4 3 Average Carried 2 | 2 2 2 Final Capacity 6 | 6 6 4 Final Carried 3 | 2 3 . Class Distribution -------------------- 77% | Mutant 22% | Tank Dominant Class ---------------- Mutant | -10/Materials Mutant | -9/Materials Resources | -11 -10 -9 ----------- Run | Scr Mat Mat Matter Collected 410 | 218 66 126 Remotely . | . . . Salvage Created 300 | . 52 248 Parts 21 | . 4 17 Haulers Intercepted . | . . . Recyclers Shooed . | . . . Parts Field Recycled . | . . . Retrieved Matter . | . . . Parts Self-Destructed . | . . . Prevented . | . . . Kills | -11 -10 -9 ------- Run | Scr Mat Mat Combat Hostiles Destroyed 5 | . 1 4 Guns 5 | . 1 4 Classes Destroyed 2 | . 1 1 Tunneler 1 | . . 1 Abomination 5 | . 1 4 Best Kill Streak 3 | . 1 3 Combat Bots Only 2 | . 1 2 Max Kills in Single Turn 1 | . 1 1 Gunslinging . | . . . Exploded . | . . . Melee . | . . . Uniques/NPCs Destroyed . | . . . Combat | -11 -10 -9 -------- Run | Scr Mat Mat Damage Taken 1257 | . 180 1077 Core 401 | . . 401 Absorbed by Shields . | . . . Core Remaining (%) 100 | 100 100 . Volleys Fired 35 | . 3 32 Largest 3 | . 2 3 Hottest 90 | . 40 90 Shots Fired 75 | . 6 69 Gun 73 | . 6 67 Cannon . | . . . Launcher 2 | . . 2 Special . | . . . Kinetic 54 | . 6 48 Thermal 19 | . . 19 Explosive 2 | . . 2 Electromagnetic . | . . . Robot Hit Streak 12 | . 4 12 Robot Miss Streak 3 | . 1 3 Penetration Max . | . . . Secondary Targets . | . . . Shots Hit Robots 45 | . 5 40 Core Hits 18 | . 3 15 Critical Hits . | . . . Critical Kills . | . . . Critical Parts Destroyed . | . . . Melee Attacks . | . . . Impact . | . . . Slashing . | . . . Piercing . | . . . Sneak Attacks . | . . . Combat Hostiles . | . . . Follow-up Attacks . | . . . Damage Inflicted 566 | . 67 499 Guns 522 | . 67 455 Cannons . | . . . Explosions 40 | . . 40 Melee . | . . . Ramming 4 | . . 4 Kinetic 302 | . 67 235 Thermal 220 | . . 220 Explosive 40 | . . 40 Electromagnetic . | . . . Impact . | . . . Slashing . | . . . Piercing . | . . . Highest Corruption 7 | . . 7 Average Corruption 5 | . . 5 Corruption Purged . | . . . Effects 2 | . . 2 Heat Flow Errors 1 | . . 1 Targeting Errors 1 | . . 1 Overload Shots . | . . . Overflow Damage . | . . . Projectiles . | . . . Explosions . | . . . Melee . | . . . Knockbacks . | . . . Impact . | . . . Kinetic . | . . . Secondary . | . . . Self-Inflicted Damage 28 | . . 28 Shots 1 | . . 1 Rammed 3 | . . 3 Targets Rammed 3 | . . 3 Kicked . | . . . Crushed . | . . . Highest Temperature 431 | . . 431 Average Temperature 152 | . . 152 Received Heat Transfer 108 | . . 108 Effects 2 | . . 2 Shutdowns 1 | . . 1 Energy Bleed 1 | . . 1 Siege Activations . | . . . Robots Corrupted . | . . . Combat Hostiles . | . . . Parts Fried . | . . . Impact Corruptions . | . . . Robots Melted . | . . . Combat Hostiles . | . . . Parts Melted . | . . . Heat Transferred 120 | . . 120 Parts Sabotaged . | . . . Parts Stolen . | . . . Parts Stripped . | . . . Power Chain Reactions . | . . . Missiles Intercepted . | . . . Alert | -11 -10 -9 ------- Run | Scr Mat Mat Peak Influence 16 | . . 16 Average Influence 1 | . . 4 Maximum Alert Level . | . . . Low Security (%) 100 | . . . Level 1 . | . . . Level 2 . | . . . Level 3 . | . . . Level 4 . | . . . Level 5 . | . . . High Security . | . . . Max Security . | . . . Squads Dispatched 5 | . 1 4 Investigation 2 | . . 2 Extermination . | . . . Reinforcement 3 | . 1 2 Assault . | . . . Garrison . | . . . Intercept . | . . . Construction Impeded . | . . . Haulers Reinforced . | . . . Stealth | -11 -10 -9 --------- Run | Scr Mat Mat Distress Signals 1 | . . 1 Communications Jammed . | . . . Distress Signals . | . . . Times Spotted 11 | . 1 10 Peak Tracking Total 8 | . 2 8 Tactical Retreats . | . . . Traps | -11 -10 -9 ------- Run | Scr Mat Mat Traps Triggered . | . . . Indirectly . | . . . Trap Hack Attempts . | . . . Triggered . | . . . Disarmed . | . . . Reprogrammed . | . . . Reused . | . . . Traps Extracted . | . . . Installed . | . . . Triggered . | . . . Machines | -11 -10 -9 ---------- Run | Scr Mat Mat Machines Disabled . | . . . Max in Single Turn . | . . . Machines Sabotaged . | . . . Garrisons Compromised . | . . . Overloaded Fab Kills . | . . . Fab Network Shutdowns . | . . . Hacking | -11 -10 -9 --------- Run | Scr Mat Mat Machines Accessed 1 | . . 1 Terminals 1 | . . 1 Fabricators . | . . . Repair Stations . | . . . Recycling Units . | . . . Scanalyzers . | . . . Garrison Access . | . . . Total Hacks 3 | . . 3 Successful 1 | . . 1 Failed 2 | . . 2 Catastrophic 1 | . . 1 Database Lockouts . | . . . Manual . | . . . Terminals 3 | . . 3 Fabricators . | . . . Repair Stations . | . . . Recycling Units . | . . . Scanalyzers . | . . . Garrison Access . | . . . Terminal Hacks 1 | . . 1 Robot Analysis 1 | . . 1 Fabricator Hacks . | . . . Repair Station Hacks . | . . . Recycling Unit Hacks . | . . . Scanalyzer . | . . . Garrison Access Hacks . | . . . Unauthorized Hacks . | . . . Terminals . | . . . Fabricators . | . . . Repair Stations . | . . . Recycling Units . | . . . Scanalyzers . | . . . Garrison Access . | . . . Data Cores Recovered . | . . . Used . | . . . Hacking Detections 1 | . . 1 Full Trace Events 1 | . . 1 Feedback Events 1 | . . 1 Corruption 1 | . . 1 Feedback Blocked . | . . . Robot Schematics Acquired . | . . . Robots Built . | . . . Matter . | . . . Time . | . . . Total Robot Build Rating . | . . . Part Schematics Acquired . | . . . Parts Built . | . . . Matter . | . . . Time . | . . . Total Part Build Rating . | . . . Parts Repaired . | . . . Time . | . . . Parts Recycled . | . . . Recycled Matter . | . . . Retrieved Matter . | . . . Retrieved Components . | . . . Parts Scanalyzed . | . . . Part Schematics Acquired . | . . . Parts Damaged . | . . . Bothacking | -11 -10 -9 ------------ Run | Scr Mat Mat Used RIF Installer . | . . . Robots Hacked . | . . . Non-combat . | . . . Combat . | . . . Robot Hacks Applied . | . . . Relay Couplers Released . | . . . Robots Rewired . | . . . Allies Hacked . | . . . Hacks Repelled . | . . . Allies | -11 -10 -9 -------- Run | Scr Mat Mat Total Allies . | . . . Largest Group . | . . . Highest-Rated Group . | . . . Highest-Rated Ally . | . . . Total Orders . | . . . Ally Attacks . | . . . Total Damage . | . . . Kills . | . . . Allies Corrupted . | . . . Allies Melted . | . . . Intel | -11 -10 -9 ------- Run | Scr Mat Mat Robot Analysis Total 1 | . . 1 Derelict Logs Recovered . | . . . Drone Launches . | . . . Drone Recoveries . | . . . Exploration | -11 -10 -9 ------------- Run | Scr Mat Mat Turns Passed 507 | 65 232 210 Spaces Moved 316 | 47 161 108 Core 73 | 10 . 63 Treads . | . . . Legs 243 | 37 161 45 Wheels . | . . . Hover . | . . . Flight . | . . . Fastest Speed 50 | 50 120 50 Average Speed 105 | 105 120 82 Slowest Speed 120 | 120 120 120 Overloaded Moves . | . . . Propulsion Burnouts . | . . . Robots Hopped . | . . . Cave-ins Triggered 1 | . . 1 Exploration Rate (%) 16 | 4 33 13 Regions Visited 2 Branch Regions . Pre-discovered Areas . | . . . Known Exits Taken . | . . . Unknown Exits Taken 2 | 1 1 . Scrap Searched . | . . . Spaces Dug 8 | . . 8 Terrain Destroyed 9 | . . 9 Melee . | . . . Projectile . | . . . AOE 9 | . . 9 Actions | -11 -10 -9 --------- Run | Scr Mat Mat Total 425 | 63 193 169 Wait 40 | . 23 17 Move 314 | 46 160 108 Hop . | . . . Pick Up 15 | 9 3 3 Fast Attach . | . . . Attach 15 | 7 2 6 Detach . | . . . Swap 2 | . 2 . Drop 1 | 1 . . Fire 35 | . 3 32 Melee . | . . . Ram 3 | . . 3 Kick . | . . . Crush . | . . . Escape Stasis . | . . . Rewire . | . . . Trap . | . . . Miscellaneous . | . . . Route ------- -11/Scrapyard -10/Materials -9/Materials History --------- Turn | Location | Event 6 | -11/Scrapyard | Discovered new exit (range 15) 66 | -11/Scrapyard | Entered Materials 255 | -10/Materials | Discovered new exit (range 16) 298 | -10/Materials | Entered another Materials area 298 | -9/Materials | Evolved 2 slots: Power x1, Weapon x1 426 | -9/Materials | Crushed by falling debris 450 | -9/Materials | Core integrity fell below 50% 475 | -9/Materials | Core integrity fell below 20% 486 | -9/Materials | Lost 10 parts (2p2n2u4w) 508 | -9/Materials | Destroyed by Lesser Abomination with Small Laser Last Messages --------------- Feedback: System corruption (+1%). ALERT: Suspicious activity at Terminal M007. Dispatching Investigation squad. Lesser Abomination feeds off Hungry Anomaly, taking Lgt. Treads, Med. Storage Unit. Lesser Abomination spits out Integration Mediator. Lesser Abomination feeds off Hungry Anomaly, taking Integration Mediator. Lesser Abomination absorbs Com. Wheel. Hungry Anomaly eats Integration Mediator. Lesser Abomination spits out Sensor Array. Lesser Abomination feeds off Hungry Anomaly, taking Sensor Array. Hungry Anomaly eats Sensor Array. Lesser Abomination absorbs Ion Engine. Lesser Abomination feeds off Hungry Anomaly, taking Wheel. Lesser Abomination spits out Integration Mediator. Lesser Abomination feeds off Hungry Anomaly, taking Integration Mediator. Hungry Anomaly eats Sml. Laser. Lesser Abomination feeds off Hungry Anomaly, taking Flight Unit. Hungry Anomaly eats Integration Mediator. 48 Matter blinks away. Map ----- +----------------------------------------------------+ | ?????????????????????????????????????????????????? | | ?????????????????????????????????????????????????? | | ?????????????????????????????????????????????????? | | ?????????????????????????????????????????????????? | | ?????????????????????????????????????????????????? | | ?????????????????????????????????????????????????? | | ?????????????????????????????????????????????????? | | ?????????????????????????????????????????????????? | | ?????????????????????????????????????????????????? | | ?????????????????????????????????????????????????? | | ?????????????????????????????????????????????????? | | ?????????????????????????????????????????????????? | | ?????????????????????????????????????????????????? | | ?????????????????????????????????????????????????? | | ?????????????????????????????????????????????????? | | ?????????????????????????????????????????????????? | | ?????????????????????????????????????????????????? | | ?????????????????????????????????????????????????? | | ?????????????????????????????????????????????????? | | ?????????????????????########?######?????????????? | | ?????????????????????# # #?????????????? | | ?????????????????????# % # #?????????????? | | ?????????????????????# """ # #???#"????????? | | ?????????????????????# T" # ##?# ????????? | | ?????????????????????# """%# "##" ???????? | | ?????????????????????# @ # " [ ???????? | | ?????????????????????#####A###""""""""" ???????? | | ?????????????????????????#AA % +??????? | | ?????????????????????????# A [%"""" #??????? | | ????????????????????#????# % "" #??????? | | ????????????????????+ #### [ %%"## ???????? | | ????????????????????# #?????????????? | | ????????????????????# % #?????????????? | | ????????????????????# ""#?????????????? | | ????????????????????# % ;;#?????????????? | | ?????????????????# ?# [ A; #?????????????? | | ??????????????? "## ########"; ;;##????????????? | | ??????????????""""" ????## ; ########?????? | | ?????????????? ????# " #?????? | | ?????????????? ????## "% "" #?????? | | ??????????????? ?????# " """ #?????? | | ???????????????"""" ????## " " """ #?????? | | ???????????????? """"#####?# " "" #?????? | | ?????????????????#" %% ##?## " "" #?????? | | ??????????????????# %% ##### " "" % #?????? | | ??????????????????# [ #### " "" #?????? | | ??????????????????# """ # ## "%"" #?????? | | ??????????????????# """ #####"" """"""""""####### | | ??????????????????# """ / %% % | | ??????????????????#### #######""" ! | +----------------------------------------------------+ Best States ------------- Heat Dissipation 28 Energy Generation 15 Energy Capacity 250 Matter Stores 300 Matter Capacity 300 Sight Range 18 Terrain Scan Density 10 Propulsion Shielding 33 Reclamation Efficiency 10 Evasion (%) 50 Item Schematics ----------------- None Robot Schematics ------------------ None Fabricated ------------ Nothing Alien Tech Used ----------------- None Achievements -------------- None Challenges ------------ None Game ------ Seed RocketReflectiveUnit Manual? 0 Play Time 00:13:11 Cumulative 4.8 hours Start 2019.10.31 @ 15:50:40 End 2019.10.31 @ 16:17:21 Sessions 1 Manual Loads 0 Difficulty Rogue Special Mode Halloween2019/Abominations Game No. 13 Rogue 13 Adventurer 0 Explorer 0 Win Type - Total 0 Types 0/0/0/0/0/0/0 Lore% 3 Gallery% 9 Achievement% 7 Wizard Run 0 Options --------- ASCII 0 Keyboard 0 Movement Mouse Keybinds 0 Fullscreen 1 Font 18/SmallcapsGlow Map View 76x50 Tactical HUD 0 Map Filters NONE Filters NONE Steam 1 RUN: 95e8ae1c-6dac-4de3-a863-1b1ced9a3625